bitfinex/quotes_ETHUSD_20240821
["timestamp","ask_amount","ask_price","bid_price","bid_amount"]
[1724204170957,2.72136854,2574.5,2574.3,1.3131]
[1724204172162,2.72136854,2574.5,2574.3,0.55]
[1724204172515,2.4247,2574.5,2574.1,0.55]
[1724204173437,2.4247,2574.5,2574.1,4.631]
[1724204173751,2.4247,2574.5,2574.2,3.0]
[1724204173956,2.4247,2574.5,2574.3,0.55]
[1724204174251,2.4247,2574.5,2574.3,1.3681]
[1724204174452,0.29709567,2574.4,2574.3,1.3681]
[1724204174751,2.4247,2574.5,2574.3,1.3681]
[1724204175114,2.4427,2575.2,2574.3,1.3681]
[1724204175474,2.4671,2575.0,2574.3,1.3681]
[1724204175961,2.4671,2574.8,2574.3,1.3681]
[1724204176263,2.4671,2574.8,2574.3,0.55]
[1724204176557,0.29710457,2574.7,2574.3,0.55]
[1724204176791,2.3909,2574.6,2574.3,0.55]
[1724204176941,2.68800457,2574.6,2574.3,0.55]
[1724204178556,2.68800457,2574.6,2574.1,0.55]
[1724204178910,2.3909,2574.6,2574.1,0.55]
[1724204179147,2.3909,2574.6,2574.1,1.41690027]
[1724204180361,2.3909,2574.6,2573.9,7.41]
[1724204180524,0.72031214,2574.5,2573.9,7.41]
[1724204180734,2.84011434,2574.4,2573.9,7.41]
[1724204180942,2.4168,2574.4,2573.9,7.41]
[1724204181144,0.2969978,2574.3,2573.9,7.41]
[1724204181347,2.4649,2574.2,2573.5,4.081]
[1724204181568,2.7618978,2574.2,2573.6,1.1491]
[1724204181734,2.4649,2574.2,2573.6,1.1491]
[1724204182323,2.4649,2574.2,2573.8,4.081]
[1724204182521,2.4649,2574.2,2573.9,3.0]
[1724204182948,2.4649,2574.2,2574.0,0.55]
[1724204183161,2.4649,2574.2,2574.1,0.355]
[1724204183453,2.4649,2574.2,2574.1,0.905]
[1724204184156,2.4649,2574.2,2574.1,0.55]
[1724204185956,2.4649,2574.2,2573.9,3.55]
[1724204191745,2.4315,2574.6,2573.9,3.55]
[1724204192187,0.28854478,2574.5,2573.9,3.55]
[1724204192330,2.4315,2574.4,2573.9,3.55]
[1724204192677,2.4315,2574.2,2574.0,3.0]
[1724204192878,2.4315,2574.2,2573.8,3.0]
[1724204192879,2.4315,2574.2,2573.7,7.41]
[1724204193082,0.4236416,2574.1,2573.2,11.491]
[1724204193234,2.6995416,2574.0,2573.2,11.491]
[1724204193570,2.4925,2573.8,2573.2,11.491]
[1724204193778,2.4925,2573.8,2573.3,3.1497]
[1724204194138,0.28863408,2573.7,2573.3,3.1497]
[1724204194330,2.4925,2573.8,2573.4,3.55]
[1724204196698,0.28774092,2573.7,2573.4,3.55]
[1724204196898,0.28774092,2573.7,2573.4,5.36907]
[1724204197198,2.4925,2573.8,2573.4,5.36907]
[1724204197701,2.4229,2573.6,2573.4,3.55]
[1724204198013,2.4229,2573.6,2572.6,0.3894]
[1724204198014,2.387,2573.5,2572.6,11.491]
[1724204198302,2.387,2573.3,2572.7,1.1491]
[1724204198451,0.42366874,2573.2,2572.7,1.1491]
[1724204198655,2.387,2573.3,2572.7,1.1491]
[1724204199202,2.387,2573.3,2572.7,4.1491]
[1724204199411,2.387,2573.3,2572.8,2.11401]
[1724204199561,0.28770519,2573.2,2572.8,5.11401]
[1724204199758,2.387,2573.3,2572.8,2.11401]
[1724204200020,2.387,2573.3,2572.9,4.15872464]
[1724204200330,2.387,2573.3,2573.0,3.55]
[1724204200479,2.387,2573.3,2573.1,0.7631]
[1724204200812,2.387,2573.3,2573.2,0.55]
[1724204201103,2.81066534,2573.3,2573.2,0.55]
[1724204201302,2.81066534,2573.3,2573.1,0.55]
[1724204201480,2.387,2573.3,2573.1,0.55]
[1724204202714,2.387,2573.3,2572.9,0.55]
[1724204203011,2.387,2573.3,2572.9,1.061401]
[1724204203187,2.387,2573.3,2572.9,4.061401]
[1724204204061,2.387,2573.3,2572.9,8.142401]
[1724204205077,2.387,2573.3,2573.2,4.081]
[1724204205266,2.387,2573.3,2573.2,7.631]
[1724204205469,2.387,2573.3,2573.2,8.3941]
[1724204206374,2.3496,2573.8,2573.2,8.3941]
[1724204206569,2.3496,2573.8,2573.3,3.55]
[1724204206769,2.3496,2573.6,2573.3,3.55]
[1724204207899,2.3496,2573.6,2573.3,0.55]
[1724204208437,2.3496,2573.6,2573.3,1.72231]
[1724204209104,2.3496,2573.6,2573.3,5.80331]
[1724204209733,2.3496,2573.6,2573.3,1.72231]
[1724204211486,2.3496,2573.6,2573.3,5.80331]
[1724204211904,2.3496,2573.6,2573.4,3.0]
[1724204212237,0.28723166,2573.5,2573.4,4.256641]
[1724204212388,0.28723166,2573.5,2573.4,4.806641]
[1724204213326,2.3496,2573.6,2573.4,4.806641]
[1724204213532,2.01150812,2574.4,2573.5,0.55]
[1724204213533,2.4562,2573.9,2573.5,0.55]
[1724204213729,2.4562,2573.9,2573.6,0.5356641]
[1724204213889,2.4562,2573.9,2573.7,0.55]
[1724204214089,2.4562,2573.9,2573.7,3.55]
[1724204214750,2.4562,2573.9,2573.7,0.55]
[1724204217648,1.20752366,2574.4,2573.7,0.55]
[1724204217649,2.4008,2574.3,2573.7,0.55]
[1724204217849,2.4008,2574.3,2573.9,4.081]
[1724204218046,2.4008,2574.3,2574.0,3.0]
[1724204218252,2.4008,2574.3,2574.1,0.55]
[1724204219059,3.60832366,2574.6,2574.2,4.081]
[1724204219268,2.41527173,2575.1,2574.5,4.081]
[1724204219269,2.4008,2574.9,2574.5,4.081]
[1724204219553,2.4008,2574.9,2574.6,3.0]
[1724204219707,2.4008,2574.9,2574.7,0.55]
[1724204219904,0.42388089,2574.8,2574.7,0.55]
[1724204220166,2.4008,2574.9,2574.7,0.55]
[1724204220325,0.42391682,2574.8,2574.7,0.55]
[1724204220714,2.4008,2574.9,2574.7,0.55]
[1724204221370,0.42400018,2574.8,2574.7,0.55]
[1724204221705,2.4008,2574.9,2574.7,0.55]
[1724204226571,2.4008,2574.9,2574.7,1.3131]
[1724204227076,0.28939293,2574.8,2574.7,1.3131]
[1724204227462,2.4132,2575.1,2574.7,1.3131]
[1724204227622,1.20752366,2575.4,2574.8,4.081]
[1724204227623,2.2502,2575.4,2574.8,4.081]
[1724204227949,0.28941078,2575.0,2574.9,4.08941]
[1724204228281,2.2502,2575.4,2574.9,4.08941]
[1724204228573,0.28941078,2575.3,2574.9,4.08941]
[1724204228773,0.28941078,2575.3,2575.1,4.081]
[1724204228954,2.3586,2575.7,2575.2,3.9581]
[1724204229154,0.28941078,2575.6,2575.2,3.9581]
[1724204230646,0.28941078,2575.6,2575.3,0.07765081]
[1724204230832,0.28941078,2575.6,2575.4,0.55]
[1724204231176,0.29085651,2575.5,2575.4,0.55]
[1724204231342,2.3586,2575.7,2575.4,0.95357509]
[1724204231547,0.29085651,2575.6,2575.4,0.95357509]
[1724204231765,2.3586,2575.7,2575.4,0.95357509]
[1724204232260,2.3586,2575.7,2575.4,5.03457509]
[1724204232669,2.3586,2575.7,2575.5,3.0]
[1724204232836,2.3586,2575.7,2575.6,1.35345751]
[1724204233649,2.4387,2576.3,2575.6,1.35345751]
[1724204234096,1.20752366,2576.7,2575.6,1.35345751]
[1724204234097,2.4387,2576.1,2575.6,1.35345751]
[1724204236703,2.4387,2576.1,2575.5,7.41]
[1724204237954,2.4387,2576.1,2575.6,0.55]
[1724204238305,0.29124897,2576.0,2575.6,3.55]
[1724204238712,2.4387,2576.1,2575.6,3.55]
[1724204239009,2.4387,2576.1,2575.7,1.17363902]
[1724204239162,2.4387,2576.1,2575.7,1.096]
[1724204239515,2.4387,2576.1,2575.8,0.55]
[1724204239715,2.4901,2576.4,2575.9,0.077637]
[1724204239859,2.4901,2576.4,2576.0,0.55]
[1724204240411,2.4901,2576.4,2576.1,0.07762684]
[1724204240560,2.4901,2576.4,2576.2,0.55]
[1724204241269,2.4901,2576.4,2576.0,0.55]
[1724204241573,2.4901,2576.4,2576.1,0.07762685]
[1724204241781,2.4901,2576.4,2576.2,0.55]
[1724204242291,2.4901,2576.4,2576.1,0.55]
[1724204242486,2.4901,2576.4,2576.1,0.62762685]
[1724204242688,2.4901,2576.4,2576.2,0.47266732]
[1724204242894,2.4901,2576.4,2575.8,7.41]
[1724204244215,2.4901,2576.4,2575.9,0.55]
[1724204244393,2.4901,2576.4,2575.9,3.55]
[1724204250013,0.28204521,2576.3,2575.9,3.55]
[1724204250220,2.4901,2576.4,2576.0,1.096]
[1724204250597,2.73974521,2576.3,2576.0,1.096]
[1724204250847,2.4577,2576.3,2576.0,1.096]
[1724204251545,2.4577,2576.3,2576.1,0.55]
[1724204252686,2.4577,2577.3,2576.1,0.55]
[1724204252887,2.4577,2577.1,2576.1,0.55]
[1724204253583,2.4577,2576.9,2576.1,0.55]
[1724204254043,0.28204521,2576.8,2576.1,3.55]
[1724204254340,0.28204521,2576.8,2576.2,0.56608]
[1724204254542,0.28204521,2576.8,2576.3,0.55]
[1724204255383,2.4577,2576.9,2576.3,0.55]
[1724204256523,2.3006,2577.6,2576.3,0.55]
[1724204256871,2.4809,2577.4,2576.3,0.55]
[1724204257386,2.4809,2577.4,2576.7,4.081]
[1724204257595,0.2739974,2577.3,2576.8,4.5648]
[1724204258437,0.2739974,2577.3,2576.8,3.55]
[1724204259253,0.2739974,2577.3,2576.8,0.55]
[1724204259575,0.2739974,2577.3,2576.6,0.55]
[1724204259969,2.4809,2577.4,2576.6,0.55]
[1724204260352,2.4809,2577.4,2576.7,4.081]
[1724204260541,2.4809,2577.4,2576.8,3.55]
[1724204261066,0.27427595,2577.3,2576.8,3.55]
[1724204261896,0.27427595,2577.3,2576.9,0.7631]
[1724204262043,0.27427595,2577.3,2577.0,0.55]
[1724204264688,2.4363,2577.6,2577.0,0.55]
[1724204264874,0.2744197,2577.2,2577.0,0.55]
[1724204265212,2.4363,2577.6,2577.0,0.55]
[1724204265213,0.2744197,2577.1,2577.0,0.55]
[1724204265419,2.4363,2577.6,2577.0,1.08279]
[1724204265569,0.2744197,2577.5,2577.0,4.08279]
[1724204265770,0.2744197,2577.5,2577.0,1.08279]
[1724204266383,2.3483,2577.4,2576.2,0.56608]
[1724204266585,0.011,2577.7,2576.2,0.56608]
[1724204266586,2.2806,2577.2,2576.2,0.56608]
[1724204267272,0.27442868,2577.1,2576.2,0.56608]
[1724204267490,2.4247,2577.0,2576.2,0.56608]
[1724204267727,2.4247,2577.0,2576.3,0.830208]
[1724204267891,0.27442868,2576.9,2576.3,0.830208]
[1724204268287,2.4247,2577.0,2576.3,0.830208]
[1724204268834,0.27442868,2576.9,2576.3,0.830208]
[1724204269119,0.27442868,2576.9,2576.4,0.55]
[1724204270808,2.4618,2576.8,2576.4,0.55]
[1724204271118,2.4618,2576.8,2576.2,3.56608]
[1724204271320,2.4618,2576.6,2575.8,19.68]
[1724204271478,2.4618,2576.6,2575.8,7.41]
[1724204272102,2.4483,2576.4,2575.8,7.41]
[1724204272618,0.27351206,2576.3,2575.9,3.55]
[1724204272920,2.4483,2576.4,2575.9,3.55]
[1724204273125,2.4483,2576.4,2576.0,1.096]
[1724204273329,0.27338622,2576.3,2576.1,0.55]
[1724204274830,2.4483,2576.4,2576.1,3.55]
[1724204276192,0.27344914,2576.3,2576.1,0.55]
[1724204276676,0.27344914,2576.3,2576.0,1.096]
[1724204277077,1.21975565,2577.7,2576.2,1.7477]
[1724204277389,0.011,2577.7,2577.0,4.081]
[1724204277582,0.011,2577.7,2577.1,3.0]
[1724204277775,0.011,2577.7,2577.2,0.7081]
[1724204278033,0.011,2577.7,2577.2,1.2581]
[1724204279779,0.011,2577.7,2577.4,4.081]
[1724204279979,2.287,2577.7,2577.5,3.55]
[1724204281236,2.287,2577.7,2577.5,0.55]
[1724204281520,2.287,2577.7,2577.3,0.55]
[1724204281676,2.287,2577.7,2577.3,1.38391]
[1724204284733,2.3218,2577.5,2577.3,0.55]
[1724204285299,0.24631837,2577.4,2577.3,0.55]
[1724204286311,0.24631837,2577.4,2577.2,3.55]
[1724204287644,2.3218,2577.5,2577.2,3.55]
[1724204288033,2.3218,2577.5,2577.4,4.081]
[1724204288232,0.24631837,2577.5,2577.4,5.3941]
[1724204288395,0.011,2577.7,2577.4,8.3941]
[1724204288602,0.24831196,2577.6,2577.5,3.0]
[1724204288798,0.011,2577.7,2577.5,3.55]
[1724204289033,0.011,2577.7,2577.6,1.38941]
[1724204292249,2.4356,2577.7,2577.6,0.55]
[1724204292797,2.4356,2577.7,2577.4,0.55]
[1724204293210,2.4356,2577.7,2576.5,7.41]
[1724204293211,0.4242878,2577.6,2576.5,7.41]
[1724204293492,2.3213,2577.4,2576.1,4.4906]
[1724204293692,1.20875565,2576.9,2576.1,0.4096]
[1724204293859,1.20875565,2576.9,2575.9,7.41]
[1724204293860,2.253,2576.8,2575.9,7.41]
[1724204294061,2.253,2576.6,2575.9,7.41]
[1724204294651,0.42414579,2576.5,2575.8,4.081]
[1724204294854,2.253,2576.6,2575.8,4.081]
[1724204295087,0.42412207,2576.5,2575.5,11.491]
[1724204295286,2.427,2576.4,2575.6,1.1491]
[1724204295595,2.427,2576.2,2575.6,1.1491]
[1724204295965,2.427,2576.2,2575.8,4.081]
[1724204296273,0.24804142,2576.1,2575.9,0.4081]
[1724204296478,0.24804142,2576.1,2575.9,3.4081]
[1724204296671,2.427,2576.2,2575.9,0.4081]
[1724204296841,2.427,2576.2,2576.0,0.55]
[1724204298197,2.427,2576.2,2576.0,1.35391]
[1724204298855,2.4548,2576.8,2576.0,1.35391]
[1724204299056,0.42410562,2576.7,2576.0,1.35391]
[1724204299284,0.24687765,2576.7,2576.0,1.35391]
[1724204299592,0.24687765,2576.7,2576.1,0.476201]
[1724204299801,0.24687765,2576.7,2576.2,0.55]
[1724204300607,0.24687765,2576.7,2576.2,3.55]
[1724204302593,2.4548,2576.8,2576.2,3.55]
[1724204303100,2.4548,2576.6,2576.2,3.0]
[1724204303392,2.4548,2576.4,2575.9,3.0]
[1724204303754,2.4548,2576.4,2575.8,7.41]
[1724204304063,2.3115,2576.2,2575.8,7.41]
[1724204304684,0.24620102,2576.1,2575.8,7.41]
[1724204304995,0.24620102,2576.1,2575.8,0.741]
[1724204305166,2.3115,2576.2,2575.5,4.081]
[1724204305362,2.3115,2576.2,2575.6,3.0]
[1724204305563,2.3115,2576.2,2575.7,0.55]
[1724204305952,2.3115,2576.2,2575.8,4.081]
[1724204306294,2.3115,2576.2,2575.9,3.55]
[1724204306494,2.3115,2576.2,2575.9,4.3681]
[1724204309200,2.3115,2576.2,2576.1,4.081]
[1724204309405,1.6098144,2577.0,2576.1,7.631]
[1724204309406,2.2611,2576.8,2576.1,7.631]
[1724204309703,2.2611,2576.8,2576.2,3.62762356]
[1724204309704,0.24608372,2576.7,2576.2,3.62762356]
[1724204309903,0.24608372,2576.7,2576.4,4.081]
[1724204310115,2.2611,2576.8,2576.5,3.55]
[1724204310454,0.24615592,2576.7,2576.5,3.55]
[1724204310786,2.2611,2576.8,2576.5,3.55]
[1724204310989,2.2611,2576.8,2576.6,0.7631]
[1724204311280,2.2611,2576.8,2576.7,0.55]
[1724204311867,2.2611,2576.8,2576.6,0.55]
[1724204316897,1.20875565,2577.5,2576.6,0.55]
[1724204316898,2.4841,2577.4,2576.6,0.55]
[1724204317225,2.4841,2577.4,2576.6,1.3131]
[1724204317378,0.24660707,2577.3,2576.6,1.3131]
[1724204318389,2.8201075,2577.2,2576.6,1.3131]
[1724204318600,0.42419325,2577.1,2576.2,7.41]
[1724204318779,2.82009325,2577.0,2576.2,7.41]
[1724204318974,1.45604848,2577.1,2576.2,7.41]
[1724204318975,2.3959,2576.8,2576.2,7.41]
[1724204319233,2.3959,2576.8,2576.2,1.1491]
[1724204319382,2.3959,2576.8,2576.1,4.081]
[1724204319735,2.3959,2576.6,2576.1,4.081]
[1724204319892,2.3959,2576.6,2576.2,0.55]
[1724204320624,2.3959,2576.4,2576.2,3.0]
[1724204320830,2.3959,2576.4,2575.8,23.761]
[1724204320831,2.3959,2576.4,2575.9,3.0]
[1724204321155,2.3959,2576.4,2576.0,2.6761]
[1724204321324,2.3959,2576.4,2576.1,3.0]
[1724204321631,2.3959,2576.4,2576.1,7.081]
[1724204321981,2.3959,2576.4,2576.2,0.55]
[1724204324589,2.446,2577.0,2576.2,0.55]
[1724204324797,2.446,2577.0,2576.3,0.7631]
[1724204325027,0.24677853,2576.9,2576.3,0.7631]
[1724204325228,0.24677853,2576.9,2576.4,0.55]
[1724204325588,2.429,2576.8,2576.4,0.55]
[1724204326218,0.24677853,2576.7,2576.4,0.55]
[1724204326732,0.24677853,2576.6,2576.4,0.55]
[1724204327087,2.2642,2577.1,2576.5,0.0776201]
[1724204327319,2.2642,2577.1,2576.7,4.081]
[1724204327541,2.2642,2577.1,2576.8,3.55]
[1724204331517,2.2642,2577.1,2576.8,0.55]
[1724204331518,0.42439469,2577.0,2576.8,0.55]
[1724204331717,0.42439469,2576.9,2576.8,0.55]
[1724204332158,0.67166948,2576.9,2576.8,0.55]
[1724204333033,0.67166948,2576.9,2576.6,0.55]
[1724204333252,0.24727479,2576.9,2576.6,1.18691933]
[1724204333624,2.2642,2577.1,2576.6,1.18691933]
[1724204333970,0.42450476,2577.0,2576.6,1.18691933]
[1724204334262,0.42450814,2576.9,2576.6,1.18691933]
[1724204334472,0.24712142,2576.9,2576.6,1.18691933]
[1724204334767,2.2642,2577.1,2576.6,1.18691933]
[1724204334995,0.24712142,2576.8,2576.6,1.18691933]
[1724204335296,2.2642,2577.1,2576.6,1.18691933]
[1724204335491,0.24712142,2576.7,2576.6,1.18691933]
[1724204335991,2.2642,2577.1,2576.6,1.18691933]
[1724204336147,0.42446799,2577.0,2576.6,1.18691933]
[1724204336350,0.42446799,2576.9,2576.6,1.18691933]
[1724204336891,0.24712142,2576.8,2576.6,1.18691933]
[1724204337056,0.24712142,2576.8,2576.6,0.55]
[1724204337259,0.24712142,2576.7,2576.6,0.55]
[1724204338091,1.20875565,2577.0,2576.6,0.55]
[1724204338393,0.24712142,2576.7,2576.6,0.55]
[1724204338719,1.20875565,2577.0,2576.6,0.55]
[1724204338720,0.4244808,2576.8,2576.6,1.3131]
[1724204338887,0.24712142,2576.7,2576.6,1.3131]
[1724204339247,0.42447253,2576.7,2576.6,1.3131]
[1724204339597,0.67159395,2576.7,2576.6,1.3131]
[1724204340613,0.24712142,2576.7,2576.6,1.3131]
[1724204340962,0.42450845,2576.7,2576.6,1.3131]
[1724204341165,0.24712142,2576.7,2576.6,1.3131]
[1724204341364,0.42450513,2576.7,2576.6,1.3131]
[1724204341565,0.24712142,2576.7,2576.6,1.3131]
[1724204341806,2.2642,2577.1,2576.6,1.3131]
[1724204342105,0.4245327,2577.0,2576.8,4.081]
[1724204342308,0.24712142,2577.0,2576.9,3.55]
[1724204342523,0.42453773,2577.0,2576.9,3.55]
[1724204342722,0.42453773,2577.0,2576.9,4.356231]
[1724204342877,0.67165915,2577.0,2576.9,4.356231]
[1724204343075,0.24712142,2577.0,2576.9,4.356231]
[1724204343276,2.3242,2577.3,2576.9,4.356231]
[1724204343522,0.42457814,2577.2,2576.9,4.356231]
[1724204343729,2.3242,2577.1,2576.9,3.55]
[1724204344032,2.3242,2577.1,2576.7,3.0]
[1724204344033,0.42455638,2577.0,2576.7,3.0]
[1724204344238,0.42455638,2576.9,2576.7,7.081]
[1724204344518,2.3242,2577.1,2576.8,1.4491]
[1724204344726,0.42453256,2577.0,2576.8,1.4491]
[1724204344925,2.3242,2577.1,2576.8,1.4491]
[1724204344926,0.42453256,2576.9,2576.8,1.4491]
[1724204345134,0.42453256,2576.9,2576.8,0.55]
[1724204346937,0.67188851,2576.9,2576.8,0.55]
[1724204347459,0.67187803,2576.9,2576.8,0.55]
[1724204350275,0.67187803,2576.9,2576.6,0.55]
[1724204350559,2.3242,2577.1,2576.6,0.55]
[1724204350768,0.42458288,2577.0,2576.7,0.355]
[1724204350959,0.42458288,2576.9,2576.8,0.55]
[1724204351160,0.42458788,2576.9,2576.8,0.55]
[1724204351349,0.67215133,2576.9,2576.8,0.55]
[1724204351552,0.672161,2576.9,2576.8,0.55]
[1724204355737,1.40540325,2576.9,2576.8,0.55]
[1724204356173,2.6141589,2576.9,2576.8,0.55]
[1724204356525,2.6141589,2576.9,2576.6,0.55]
[1724204356729,1.1578398,2576.8,2576.6,1.29932899]
[1724204356930,0.42459755,2576.7,2576.6,1.29932899]
[1724204359140,3.53295565,2577.1,2576.6,1.29932899]
[1724204359463,1.15779837,2577.0,2576.7,0.4299329]
[1724204359679,0.42452607,2576.9,2576.8,0.55]
[1724204359971,1.20875565,2577.3,2576.8,9.3787]
[1724204360174,0.73332714,2577.2,2576.9,0.98086329]
[1724204360386,3.9208144,2577.5,2577.0,0.55]
[1724204360387,1.20875565,2577.4,2577.0,0.55]
[1724204360528,3.51975565,2577.5,2577.0,0.55]
[1724204360727,0.73340517,2577.4,2577.0,0.55]
[1724204360937,3.51975565,2577.5,2577.0,0.55]
[1724204361337,2.311,2577.5,2577.0,0.55]
[1724204362086,0.24768067,2577.4,2577.0,0.55]
[1724204362241,0.24768067,2577.4,2577.2,4.081]
[1724204362575,3.47175565,2577.7,2577.3,3.9581]
[1724204362874,2.263,2577.7,2577.3,3.9581]
[1724204363243,0.7334586,2577.6,2577.3,3.9581]
[1724204363432,2.263,2577.7,2577.3,3.9581]
[1724204363870,0.011,2577.7,2577.5,4.081]
[1724204364187,0.011,2577.7,2577.6,3.96585871]
[1724204368953,0.25888808,2577.7,2577.6,3.96585871]
[1724204369156,0.011,2577.7,2577.6,3.96585871]
[1724204370155,0.25888808,2577.7,2577.6,3.96585871]
[1724204370807,0.011,2577.7,2577.6,3.96585871]
[1724204375473,2.3601,2578.3,2577.6,3.96585871]
[1724204375681,2.3601,2578.3,2578.0,4.081]
[1724204375876,0.24111035,2578.2,2578.1,3.55]
[1724204376304,2.3601,2578.3,2578.1,3.55]
[1724204376490,0.24111035,2578.2,2578.1,3.55]
[1724204376667,0.24111035,2578.2,2578.1,4.3131]
[1724204376865,0.1249995,2578.4,2578.1,4.3131]
[1724204377305,0.24111035,2578.3,2578.1,3.55]
[1724204379598,0.1249995,2578.4,2578.1,3.55]
[1724204380484,2.4263,2578.3,2578.1,3.55]
[1724204380722,2.4263,2578.3,2578.1,0.55]
[1724204380883,2.4263,2578.3,2577.8,3.0]
[1724204380884,2.4263,2578.3,2577.9,0.55]
[1724204383114,2.68142995,2578.3,2577.8,3.0]
[1724204383295,0.42471128,2578.2,2577.6,3.0]
[1724204383499,2.85101128,2578.1,2577.5,3.0]
[1724204383729,2.85101128,2578.1,2577.4,4.081]
[1724204383730,2.4263,2577.9,2577.4,4.081]
[1724204383971,2.4263,2577.9,2577.1,11.491]
[1724204384617,2.3671,2577.7,2577.1,11.491]
[1724204385924,2.3671,2577.7,2577.2,3.55]
[1724204386773,2.3671,2577.7,2577.2,4.65952828]
[1724204387435,2.3671,2577.7,2577.4,4.081]
[1724204387666,2.3671,2577.7,2577.5,3.55]
[1724204387870,2.2822,2578.1,2577.5,3.55]
[1724204388028,2.2822,2578.1,2577.6,0.7631]
[1724204388234,0.23964492,2578.0,2577.7,0.55]
[1724204388970,0.23964492,2578.0,2577.7,4.631]
[1724204389171,0.23964492,2578.0,2577.8,3.0]
[1724204389380,0.23964492,2578.0,2577.9,1.3131]
[1724204389675,2.2822,2578.1,2577.9,1.3131]
[1724204392031,0.23964492,2578.0,2577.9,1.3131]
[1724204393030,0.1249995,2578.4,2577.9,1.3131]
[1724204393231,0.1249995,2578.4,2578.0,4.081]
[1724204393483,0.1249995,2578.4,2578.1,4.08941]
[1724204394041,0.1249995,2578.4,2578.3,4.081]
[1724204394239,0.1249995,2578.4,2578.3,7.081]
[1724204394472,0.1249995,2578.4,2578.3,7.631]
[1724204402196,0.1249995,2578.4,2578.3,3.0]
[1724204402197,2.5216995,2578.4,2578.3,3.0]
[1724204402352,2.5216995,2578.4,2578.1,3.53941]
[1724204402557,2.5216995,2578.4,2578.2,1.535641]
[1724204402967,0.1249995,2578.4,2578.3,4.081]
[1724204403177,0.36646289,2578.4,2578.3,7.081]
[1724204403968,0.36646289,2578.4,2578.3,7.631]
[1724204404208,0.36646289,2578.4,2578.3,8.6016051]
[1724204405589,0.1249995,2578.4,2578.3,8.6016051]
[1724204412724,2.5514995,2578.4,2578.3,8.6016051]
[1724204413741,0.1249995,2578.4,2578.3,8.6016051]
[1724204415004,9.5e-06,2578.4,2578.3,8.6016051]
[1724204416145,2.4473,2579.1,2578.3,8.6016051]
[1724204416313,2.4473,2579.1,2579.0,4.081]
[1724204416508,2.432,2579.4,2579.0,7.631]
[1724204416732,0.24181607,2579.1,2579.0,7.081]
[1724204416927,2.432,2579.4,2579.1,3.55]
[1724204417132,2.432,2579.6,2579.3,4.081]
[1724204417348,2.432,2579.6,2579.4,3.55]
[1724204417559,0.24215962,2579.5,2579.4,3.55]
[1724204417945,2.72995962,2579.5,2579.4,3.55]
[1724204418145,2.72995962,2579.5,2579.4,0.55]
[1724204418146,2.91255531,2579.5,2579.4,0.55]
[1724204418349,2.4418,2579.4,2579.2,0.55]
[1724204419070,0.2423404,2579.3,2579.2,0.55]
[1724204419359,0.2423404,2579.3,2579.2,1.3131]
[1724204419965,2.3082,2579.7,2579.2,1.3131]
[1724204420127,2.3082,2579.7,2579.5,4.081]
[1724204420334,1.6098144,2580.4,2579.5,4.081]
[1724204420335,2.344,2580.3,2579.6,0.55]
[1724204420530,2.344,2580.3,2579.8,4.081]
[1724204420730,2.344,2580.1,2579.9,3.55]
[1724204422004,0.24232232,2580.0,2579.9,3.55]
[1724204422507,2.50772232,2580.0,2579.9,3.55]
[1724204422660,2.50772232,2580.0,2579.9,0.55]
[1724204423002,2.50772232,2580.0,2579.7,0.55]
[1724204423208,2.2654,2580.0,2579.7,0.55]
[1724204423785,2.49194,2580.0,2579.7,0.55]
[1724204424098,2.71002232,2579.9,2579.7,0.55]
[1724204424775,2.71002232,2579.9,2579.3,3.0]
[1724204424976,2.4677,2579.9,2579.3,3.0]
[1724204425879,2.4677,2579.9,2579.4,0.55]
[1724204426077,0.22654,2580.0,2579.4,0.55]
[1724204426078,2.2919,2579.7,2579.4,0.55]
[1724204431090,2.2919,2579.7,2578.9,7.41]
[1724204431091,2.52109,2579.7,2578.9,11.491]
[1724204431295,0.42490609,2579.6,2578.9,11.491]
[1724204431493,2.3152,2579.6,2578.9,11.491]
[1724204432607,2.4684,2579.4,2579.0,3.55]
[1724204433016,2.4684,2579.4,2579.0,6.2811]
[1724204433186,2.4684,2579.4,2579.0,3.55]
[1724204433389,0.42489529,2579.3,2579.0,3.55]
[1724204433619,1.6098144,2579.8,2579.0,3.0]
[1724204433620,2.4684,2579.2,2579.0,3.0]
[1724204434207,0.28274954,2579.1,2579.0,3.0]
[1724204434542,2.4684,2579.2,2579.0,3.0]
[1724204434889,0.28274954,2579.1,2579.0,3.0]
[1724204435130,2.75114954,2579.1,2579.0,3.0]
[1724204435435,2.75114954,2579.1,2578.2,0.3892]
[1724204435436,2.4684,2579.0,2578.2,0.3892]
[1724204435589,0.70760287,2579.1,2578.0,4.081]
[1724204435590,2.4684,2578.8,2578.0,4.081]
[1724204435786,2.4684,2578.8,2576.9,2.78326905]
[1724204435787,2.4684,2578.6,2577.7,4.081]
[1724204435992,3.13770287,2578.5,2577.7,4.081]
[1724204436232,0.42474131,2578.4,2577.7,4.081]
[1724204436451,2.4301,2578.5,2577.7,4.081]
[1724204436606,2.71284954,2578.3,2577.7,4.081]
[1724204436938,2.4301,2578.3,2577.8,0.4081]
[1724204437242,0.28183631,2578.2,2578.0,4.081]